Workbook

Sheet Išlaidos
B3: Renginio biudžetas [Įvykio pavadinimas]
H4: Išlaidos
H6: Numatomos | I6: Faktinės
C7: Bendrosios išlaidos | H7: =SUM(D14,D22,D28,D35,H14,H22,H27) -> 1,145.00 EUR | I7: =SUM(E14,E22,E28,E35,I14,I22,I27) -> 395.00 EUR
C9: Vieta | D9: Numatomos | E9: Faktinės | G9: Užkandžiai | H9: Numatomos | I9: Faktinės
C10: Patalpų ir erdvių mokesčiai | D10: 500.00 EUR | E10: 250.00 EUR | G10: Maistas
C11: Vietos darbuotojai | D11: 400.00 EUR | E11: 50.00 EUR | G11: Gėrimai
C12: Įranga | G12: Patalynė
C13: Stalai ir kėdės | G13: Darbuotojai ir arbatpinigiai
C14: Suma | D14: 900.00 EUR | E14: 300.00 EUR | G14: Suma | H14: 0.00 EUR | I14: 0.00 EUR
C16: Dekoracijos | D16: Numatomos | E16: Faktinės | G16: Programa | H16: Numatomos | I16: Faktinės
C17: Gėlės | D17: 200.00 EUR | E17: 50.00 EUR | G17: Atlikėjai
C18: Žvakės | G18: Pranešėjai
C19: Apšvietimas | G19: Transportas
C20: Balionai | G20: Viešbučiai
C21: Popierius | G21: Kita
C22: Suma | D22: 200.00 EUR | E22: 50.00 EUR | G22: Suma | H22: 0.00 EUR | I22: 0.00 EUR
C24: Reklama | D24: Numatomos | E24: Faktinės | G24: Prizai | H24: Numatomos | I24: Faktinis
C25: Grafikos darbas | D25: 45.00 EUR | E25: 45.00 EUR | G25: Juostelės/lentos/prizai
C26: Kopijavimas/spausdinimas | G26: Dovanos
C27: Pašto išlaidos | G27: Suma | H27: 0.00 EUR | I27: 0.00 EUR
C28: Suma | D28: 45.00 EUR | E28: 45.00 EUR
C30: Įvairūs | D30: Numatomos | E30: Faktinės
C31: Telefonas
C32: Transportas
C33: Kanceliariniai reikmenys
C34: Fakso paslaugos
C35: Suma | D35: 0.00 EUR | E35: 0.00 EUR

Sheet Pajamos
B3: Renginio biudžetas [Įvykio pavadinimas]
F4: Įplaukos
F6: Numatomos | G6: Faktinės
B7: Pajamų suma | F7: =SUM(F14,F21,F28,F36) -> 1,936.00 EUR | G7: =SUM(G14,G21,G28,G36) -> 1,831.00 EUR
B9: ParduotiBilietai
B10: Numatomos | C10: Faktinės | F10: Numatomos | G10: Faktinės
B11: 300 | C11: 278 | D11: Suaugusieji @ | E11: 5.00 EUR | F11: =B11*E11 -> 1,500.00 EUR | G11: =C11*E11 -> 1,390.00 EUR
B12: 197 | C12: 195 | D12: Vaikai @ | E12: 2.00 EUR | F12: =B12*E12 -> 394.00 EUR | G12: =C12*E12 -> 390.00 EUR
B13: 42 | C13: 51 | D13: Kiti @ | E13: 1.00 EUR | F13: =B13*E13 -> 42.00 EUR | G13: =C13*E13 -> 51.00 EUR
F14: =SUM(F11:F13) -> 1,936.00 EUR | G14: =SUM(G11:G13) -> 1,831.00 EUR
B16: Skelbimų programoje
B17: Numatomos | C17: Faktinės | F17: Numatomos | G17: Faktinės
D18: Tituliniai lapai @ | F18: =B18*E18 -> 0.00 EUR | G18: =C18*E18 -> 0.00 EUR
D19: Po pusę puslapio @ | F19: =B19*E19 -> 0.00 EUR | G19: =C19*E19 -> 0.00 EUR
D20: Po ketvirtį puslapio @ | F20: =B20*E20 -> 0.00 EUR | G20: =C20*E20 -> 0.00 EUR
F21: =SUM(F18:F20) -> 0.00 EUR | G21: =SUM(G18:G20) -> 0.00 EUR
B23: Dalyviai/tiekėjai
B24: Numatomos | C24: Faktinės | F24: Numatomos | G24: Faktinės
D25: Didelės kabinos @ | F25: =B25*E25 -> 0.00 EUR | G25: =C25*E25 -> 0.00 EUR
D26: Vid. kabinos @ | F26: =B26*E26 -> 0.00 EUR | G26: =C26*E26 -> 0.00 EUR
D27: Mažos kabinos @ | F27: =B27*E27 -> 0.00 EUR | G27: =C27*E27 -> 0.00 EUR
F28: =SUM(F25:F27) -> 0.00 EUR | G28: =SUM(G25:G27) -> 0.00 EUR
B30: Pardavimo elementai
B31: Numatomos | C31: Faktinis | F31: Numatomos | G31: Faktinis
D32: Elem. @ | F32: =B32*E32 -> 0.00 EUR | G32: =C32*E32 -> 0.00 EUR
D33: Elem. @ | F33: =B33*E33 -> 0.00 EUR | G33: =C33*E33 -> 0.00 EUR
D34: Elem. @ | F34: =B34*E34 -> 0.00 EUR | G34: =C34*E34 -> 0.00 EUR
D35: Elem. @ | F35: =B35*E35 -> 0.00 EUR | G35: =C35*E35 -> 0.00 EUR
F36: =SUM(F32:F35) -> 0.00 EUR | G36: =SUM(G32:G35) -> 0.00 EUR

Sheet Suvestinė
B3: Renginio biudžetas [Įvykio pavadinimas]
F4: Pelno-nuostolio suvestinė
F6: Numatomos | G6: Faktinės
B7: Bendrosios pajamos | F7: =Pajamos!F7 -> 1,936.00 EUR | G7: =Pajamos!G7 -> 1,831.00 EUR
B8: Bendrosios išlaidos | F8: =Išlaidos!H7 -> 1,145.00 EUR | G8: =Išlaidos!I7 -> 395.00 EUR
B9: Bendrasis pelnas (arba nuostoliai) | F9: =F7-F8 -> 791.00 EUR | G9: =G7-G8 -> 1,436.00 EUR
